bitfinex-derivatives/quotes_BTCF0:USTF0_20251120
["timestamp","ask_amount","ask_price","bid_price","bid_amount"]
[1763644061725,0.4024,91869.0,91868.0,0.05866]
[1763644061929,0.4132962,91869.0,91868.0,0.05866]
[1763644062322,0.0524962,91869.0,91868.0,0.06085803]
[1763644062828,0.0108962,91869.0,91868.0,0.06085803]
[1763644063623,0.0524962,91869.0,91868.0,0.06085803]
[1763644064431,0.0524962,91869.0,91868.0,0.06185803]
[1763644064929,0.0524962,91869.0,91868.0,0.06085803]
[1763644065330,0.0108962,91869.0,91868.0,0.06085803]
[1763644065633,0.10504,91876.0,91868.0,0.06085803]
[1763644065634,0.0524954,91876.0,91875.0,0.05866]
[1763644065827,0.1575354,91876.0,91875.0,0.06085803]
[1763644066419,0.1159354,91876.0,91875.0,0.06085803]
[1763644066625,0.05265796,91882.0,91881.0,0.04555]
[1763644066828,0.15769796,91882.0,91881.0,0.04774803]
[1763644067032,0.15769796,91882.0,91875.0,0.04555]
[1763644067033,0.0524954,91876.0,91875.0,0.04555]
[1763644067223,0.0524954,91876.0,91875.0,0.04774803]
[1763644067533,0.0524954,91876.0,91875.0,0.06085803]
[1763644069526,0.0524954,91876.0,91875.0,0.00219803]
[1763644070029,0.4132954,91876.0,91875.0,0.00219803]
[1763644071028,0.0524962,91869.0,91868.0,0.05866]
[1763644071337,0.0524962,91869.0,91868.0,0.06085803]
[1763644074138,0.0524962,91869.0,91868.0,0.00219803]
[1763644074636,0.0524968,91864.0,91863.0,0.04571326]
[1763644074825,0.0524968,91864.0,91863.0,0.00236129]
[1763644075227,0.0524968,91864.0,91863.0,0.04791129]
[1763644076138,0.0524961,91870.0,91869.0,0.04555]
[1763644076333,0.1575361,91870.0,91869.0,0.04774803]
[1763644076538,0.0316961,91870.0,91869.0,0.04774803]
[1763644076737,0.1367361,91870.0,91869.0,0.04774803]
[1763644077134,0.1575361,91870.0,91869.0,0.04774803]
[1763644078942,0.1367361,91870.0,91869.0,0.04774803]
[1763644079136,0.1575361,91870.0,91869.0,0.04774803]
[1763644080161,0.1367361,91870.0,91869.0,0.04774803]
[1763644080345,0.1159361,91870.0,91869.0,0.04774803]
[1763644080542,0.1575361,91870.0,91869.0,0.04774803]
[1763644080940,0.1817869,91870.0,91869.0,0.04774803]
[1763644081142,0.1609869,91870.0,91869.0,0.04774803]
[1763644081341,0.1817869,91870.0,91869.0,0.04774803]
[1763644085040,0.1817869,91870.0,91869.0,0.02499803]
[1763644085242,0.1817869,91870.0,91869.0,0.0228]
[1763644085438,0.0524968,91864.0,91863.0,0.04264326]
[1763644085638,0.0524968,91864.0,91863.0,0.04484129]
[1763644086042,0.0524968,91864.0,91863.0,0.00236129]
[1763644086343,0.0524968,91864.0,91863.0,0.02354129]
[1763644086344,0.07675705,91864.0,91863.0,0.02354129]
[1763644086542,0.07675705,91864.0,91863.0,0.04584129]
[1763644086745,0.07675705,91864.0,91863.0,0.04684129]
[1763644090743,0.0108967,91865.0,91863.0,0.02566129]
[1763644090947,0.0108967,91865.0,91864.0,0.04248]
[1763644091246,0.0351657,91865.0,91864.0,0.04467803]
[1763644091638,0.0767657,91865.0,91864.0,0.04467803]
[1763644092653,0.0767657,91865.0,91864.0,0.04567803]
[1763644092953,0.0767657,91865.0,91864.0,0.04667803]
[1763644097153,0.0767657,91865.0,91864.0,0.00419803]
[1763644099851,0.0767657,91865.0,91864.0,0.02537803]
[1763644100152,0.0767657,91865.0,91864.0,0.04667803]
[1763644100353,0.0767657,91865.0,91864.0,0.02537803]
[1763644101157,0.0767657,91865.0,91864.0,0.04667803]
[1763644102047,0.1818057,91865.0,91864.0,0.04667803]
[1763644105351,0.1818057,91865.0,91864.0,0.00419803]
[1763644106268,0.1818057,91865.0,91864.0,0.02537803]
[1763644106458,0.1818057,91865.0,91864.0,0.04667803]
[1763644106660,0.1818057,91865.0,91864.0,0.00419803]
[1763644107360,0.1818057,91865.0,91863.0,3.26e-06]
[1763644107558,0.0481785,91850.0,91849.0,0.04248]
[1763644107760,0.03728,91849.0,91848.0,0.3608]
[1763644108060,0.03728,91849.0,91836.0,0.00013376]
[1763644108061,0.03728,91837.0,91836.0,0.00013376]
[1763644108366,0.0481812,91827.0,91826.0,0.05569]
[1763644108551,0.0724755,91827.0,91826.0,0.04467803]
[1763644109258,0.0481812,91827.0,91826.0,0.04467803]
[1763644110157,0.03728,91827.0,91826.0,0.04467803]
[1763644110365,0.01864,91827.0,91826.0,0.05557933]
[1763644110953,0.04474,91827.0,91826.0,0.05557933]
[1763644113160,0.04474,91827.0,91826.0,0.04467803]
[1763644114670,0.04474,91827.0,91826.0,0.02337803]
[1763644114854,0.04474,91827.0,91826.0,0.05084803]
[1763644115163,0.04474,91827.0,91826.0,0.00219803]
[1763644115358,0.076022,91820.0,91819.0,1.5]
[1763644115563,0.0761277,91820.0,91819.0,1.5]
[1763644116453,0.0761277,91820.0,91819.0,1.50219803]
[1763644117060,0.0761277,91820.0,91819.0,1.50319803]
[1763644117263,0.0761277,91820.0,91819.0,1.52743803]
[1763644118464,0.0652257,91820.0,91819.0,1.52743803]
[1763644118761,0.0001057,91820.0,91819.0,1.52743803]
[1763644119372,0.010901,91829.0,91828.0,0.0674]
[1763644119562,0.0497507,91832.0,91831.0,0.0674]
[1763644119759,0.03885,91832.0,91831.0,0.06959803]
[1763644120259,0.06518742,91832.0,91831.0,0.06959803]
[1763644121560,0.03891742,91832.0,91831.0,0.06959803]
[1763644121874,6.742e-05,91832.0,91831.0,0.06959803]
[1763644123160,6.742e-05,91832.0,91831.0,0.07059803]
[1763644124273,6.742e-05,91832.0,91831.0,0.06959803]
[1763644124569,6.742e-05,91832.0,91831.0,0.07059803]
[1763644125165,0.06518742,91832.0,91831.0,0.07059803]
[1763644126355,0.06518742,91832.0,91831.0,0.06959803]
[1763644126570,0.06518742,91832.0,91831.0,0.07059803]
[1763644126962,0.06518742,91832.0,91831.0,0.06959803]
[1763644134671,6.742e-05,91832.0,91831.0,0.06959803]
[1763644140479,0.06518742,91832.0,91831.0,0.06959803]
[1763644141881,6.742e-05,91832.0,91831.0,0.06959803]
[1763644144077,0.09887537,91832.0,91831.0,0.06959803]
[1763644144376,0.09887537,91832.0,91831.0,0.00219803]
[1763644144582,0.0852519,91821.0,91820.0,0.07718]
[1763644144981,0.0852519,91821.0,91820.0,0.07937803]
[1763644146381,0.07435,91821.0,91820.0,0.07937803]
[1763644146576,0.07441742,91832.0,91831.0,0.07718]
[1763644146785,0.10978295,91832.0,91831.0,0.07937803]
[1763644147588,0.02453235,91832.0,91831.0,0.07937803]
[1763644147882,0.09888235,91832.0,91831.0,0.07937803]
[1763644150792,0.05799235,91832.0,91831.0,0.07937803]
[1763644150980,0.02453235,91832.0,91831.0,0.07937803]
[1763644151374,6.742e-05,91832.0,91831.0,0.07937803]
[1763644154094,0.00016335,91836.0,91835.0,0.07718]
[1763644154294,0.00016335,91836.0,91835.0,0.1381929]
[1763644156087,0.00016335,91836.0,91835.0,0.07937803]
[1763644160699,0.01106345,91836.0,91835.0,0.07937803]
[1763644161197,0.08541345,91836.0,91835.0,0.07937803]
[1763644162098,0.10988766,91836.0,91835.0,0.07937803]
[1763644162585,0.00016335,91836.0,91835.0,0.07937803]
[1763644165992,0.03901705,91858.0,91847.0,0.0207]
[1763644166196,0.03901705,91867.0,91862.0,0.04054]
[1763644166390,0.07435,91867.0,91866.0,0.07937803]
[1763644166700,0.09882386,91867.0,91866.0,0.07937803]
[1763644166891,0.09882386,91867.0,91866.0,0.00219803]
[1763644167897,0.10082386,91867.0,91866.0,0.07937803]
[1763644168095,0.10182386,91867.0,91866.0,0.07937803]
[1763644169300,0.02747386,91867.0,91866.0,0.07937803]
[1763644170893,0.09274386,91867.0,91866.0,0.07937803]
[1763644171095,0.06827,91867.0,91866.0,0.07937803]
[1763644172001,0.09269843,91867.0,91866.0,0.07937803]
[1763644172198,0.06827,91867.0,91866.0,0.07937803]
[1763644172904,0.09269226,91867.0,91866.0,0.07937803]
[1763644173500,0.0734375,91858.0,91857.0,0.06195335]
[1763644173695,0.0734375,91858.0,91857.0,0.06415138]
[1763644174903,0.0744375,91858.0,91857.0,0.06415138]
[1763644175805,0.06454,91858.0,91857.0,0.06415138]
[1763644176208,0.002,91858.0,91857.0,0.06415138]
[1763644176410,0.0108973,91860.0,91859.0,0.06179]
[1763644176707,0.0427473,91860.0,91859.0,0.06398803]
[1763644178502,0.0734373,91860.0,91859.0,0.06398803]
[1763644182004,0.0108972,91861.0,91860.0,0.03148]
[1763644182205,0.010897,91863.0,91862.0,0.06179]
[1763644182403,0.073437,91863.0,91862.0,0.06398803]
[1763644183108,0.073437,91863.0,91862.0,0.00219803]
[1763644184408,0.073437,91863.0,91862.0,0.03250803]
[1763644185103,0.073437,91863.0,91857.0,0.00016335]
[1763644185104,0.0734375,91858.0,91857.0,0.00016335]
[1763644185309,0.20291207,91858.0,91857.0,0.00016335]
[1763644188410,0.0734395,91841.0,91840.0,0.06179]
[1763644188612,0.0734395,91841.0,91840.0,0.06398803]
[1763644188808,0.0734395,91841.0,91840.0,0.00219803]
[1763644189004,0.0734404,91834.0,91833.0,0.07995]
[1763644189211,0.0734404,91834.0,91833.0,0.08214803]
[1763644189405,0.0734404,91834.0,91833.0,0.00219803]
[1763644189721,0.09786451,91834.0,91833.0,0.00219803]
[1763644189909,0.09786451,91834.0,91833.0,0.03250803]
[1763644190318,0.09786451,91834.0,91833.0,0.00219803]
[1763644190614,0.09786451,91834.0,91833.0,0.00319803]
[1763644191316,0.09786451,91834.0,91833.0,0.001]
[1763644192200,0.09786451,91834.0,91833.0,0.03131]
[1763644192406,0.09786451,91834.0,91833.0,0.03250803]
[1763644192612,0.09786451,91834.0,91833.0,0.06398803]
[1763644193314,0.09786451,91834.0,91833.0,0.00219803]
[1763644193519,0.0734412,91827.0,91826.0,0.07995]
[1763644193717,0.0734412,91827.0,91826.0,0.08214803]
[1763644195810,0.03185,91827.0,91826.0,0.05066803]
[1763644196018,0.03185,91827.0,91826.0,0.08214803]
[1763644196521,0.06254,91827.0,91826.0,0.08214803]
[1763644197616,0.073442,91820.0,91819.0,0.07995]
[1763644197807,0.073442,91820.0,91819.0,0.08214803]
[1763644199217,0.073442,91820.0,91819.0,0.08314803]
[1763644200219,0.073442,91820.0,91819.0,0.00319803]
[1763644200917,0.073442,91820.0,91819.0,0.001]
[1763644201305,0.0734436,91807.0,91806.0,0.06206231]
[1763644201508,0.0734436,91807.0,91806.0,0.06426034]
[1763644203413,0.06254,91807.0,91806.0,0.06426034]
[1763644203619,0.09959705,91844.0,91843.0,0.061]
[1763644203821,0.06058,91844.0,91843.0,0.06319803]
[1763644204206,0.06058,91834.0,91833.0,0.07751]
[1763644204406,0.06058,91834.0,91833.0,0.07970803]
[1763644204610,0.12541411,91843.0,91833.0,0.07970803]
[1763644204813,0.18615746,91843.0,91842.0,0.061]
[1763644205025,0.00016335,91843.0,91842.0,0.06319803]
[1763644206614,0.3608,91876.0,91869.0,0.061]
[1763644206615,0.18599411,91870.0,91869.0,0.061]
[1763644206812,0.09584602,91870.0,91869.0,0.06319803]
[1763644208017,0.09684602,91870.0,91869.0,0.06319803]
[1763644208210,0.09884602,91870.0,91869.0,0.06319803]
[1763644208614,0.05745992,91870.0,91869.0,0.06319803]
[1763644208817,0.003,91870.0,91869.0,0.06319803]
[1763644211727,0.06358,91870.0,91869.0,0.06319803]
[1763644212027,0.39089,91876.0,91875.0,0.061]
[1763644212223,0.4322754,91876.0,91875.0,0.06319803]
[1763644212429,0.42138,91876.0,91875.0,0.06319803]
[1763644212817,0.4322754,91876.0,91875.0,0.06319803]
[1763644213026,0.42138,91876.0,91875.0,0.06319803]
[1763644215934,0.42138,91876.0,91875.0,0.00219803]
[1763644216427,0.06058,91865.0,91864.0,0.07751]
[1763644216725,0.06058,91865.0,91864.0,0.07970803]
[1763644217431,0.06058,91865.0,91864.0,0.06319803]
[1763644217733,0.0714772,91861.0,91860.0,0.00016335]
[1763644220331,0.06058,91841.0,91840.0,0.07751]
[1763644220532,0.06058,91841.0,91840.0,0.07970803]
[1763644220922,0.0714795,91841.0,91840.0,0.07970803]
[1763644221119,0.06058,91841.0,91840.0,0.07970803]
[1763644221328,0.06058,91841.0,91840.0,0.08070803]
[1763644222027,0.06058,91841.0,91840.0,0.07970803]
[1763644222225,0.06058,91841.0,91840.0,0.06319803]
[1763644223021,0.06058,91841.0,91840.0,0.07970803]
[1763644225931,0.03009,91841.0,91840.0,0.07970803]
[1763644226130,0.15683493,91850.0,91840.0,0.07970803]
[1763644226131,0.06058,91849.0,91848.0,0.07751]
[1763644226437,0.06058,91849.0,91848.0,0.07970803]
[1763644230431,0.00016335,91850.0,91849.0,0.0658686]
[1763644230632,0.00016335,91850.0,91849.0,0.06806663]
[1763644234152,0.00016335,91850.0,91849.0,0.05716803]
[1763644235940,0.02622335,91850.0,91849.0,0.05716803]
[1763644236746,0.05349335,91850.0,91849.0,0.05716803]
[1763644238549,0.00016335,91850.0,91849.0,0.05716803]
[1763644238844,0.05349335,91850.0,91849.0,0.05716803]
[1763644239041,0.02622335,91850.0,91849.0,0.05716803]
[1763644241345,0.05349335,91850.0,91849.0,0.05716803]
[1763644245143,0.07800698,91850.0,91849.0,0.05716803]
[1763644245845,0.07800698,91850.0,91840.0,0.06851]
[1763644245846,0.0642295,91841.0,91840.0,0.06851]
[1763644246050,0.0642295,91841.0,91840.0,0.07070803]
[1763644246743,0.0642295,91841.0,91840.0,0.05419803]
[1763644247251,0.08875994,91841.0,91840.0,0.05419803]
[1763644248949,0.08875994,91841.0,91840.0,0.00219803]
[1763644249255,0.08875994,91841.0,91840.0,0.02777803]
[1763644249637,0.08875994,91841.0,91840.0,0.05419803]
[1763644249842,0.08875994,91841.0,91840.0,0.02777803]
[1763644250446,0.08875994,91841.0,91840.0,0.05419803]
[1763644252143,0.08975994,91841.0,91840.0,0.05419803]
[1763644252450,0.02553044,91841.0,91840.0,0.05419803]
[1763644252954,0.001,91841.0,91840.0,0.05419803]
[1763644253548,0.00016335,91850.0,91849.0,0.052]
[1763644253739,0.00016335,91850.0,91849.0,0.05419803]
[1763644253945,0.02457342,91850.0,91849.0,0.05419803]
[1763644254752,0.05063342,91850.0,91849.0,0.05419803]
[1763644256748,0.02457342,91850.0,91849.0,0.05419803]
[1763644260354,0.00016335,91850.0,91849.0,0.05419803]
[1763644260958,0.07790592,91850.0,91849.0,0.05419803]
[1763644262063,0.02457592,91850.0,91849.0,0.05419803]
[1763644264159,0.07502592,91850.0,91849.0,0.05419803]
[1763644266867,0.07502592,91850.0,91842.0,0.06715]
[1763644266868,0.02373,91843.0,91842.0,0.06715]
[1763644267158,0.02373,91843.0,91842.0,0.06934803]
[1763644267561,0.05061335,91850.0,91849.0,0.05053]
[1763644267862,0.02458212,91850.0,91849.0,0.05272803]
[1763644268259,0.07503212,91850.0,91849.0,0.05272803]
[1763644272964,0.02458212,91850.0,91849.0,0.05272803]
[1763644273155,0.00016335,91850.0,91849.0,0.05272803]
[1763644273357,0.05045,91863.0,91860.0,0.01489]
[1763644273552,0.061347,91863.0,91862.0,0.05272803]
[1763644273752,0.07486772,91863.0,91862.0,0.05272803]
[1763644273952,0.04814772,91863.0,91862.0,0.05272803]
[1763644274161,0.02441772,91863.0,91862.0,0.05272803]
[1763644274366,0.04814772,91863.0,91862.0,0.05272803]
[1763644274763,0.02441772,91863.0,91862.0,0.05272803]
[1763644275859,0.02441772,91863.0,91862.0,0.06362513]
[1763644276065,0.03531462,91863.0,91862.0,0.05272803]
[1763644276366,0.05045,91866.0,91865.0,0.05053]
[1763644276567,0.07485063,91866.0,91865.0,0.05272803]
[1763644279868,0.08574723,91866.0,91865.0,0.05272803]
[1763644282866,0.07485063,91866.0,91865.0,0.05272803]
[1763644286473,0.07485063,91866.0,91865.0,0.06761803]
[1763644291379,0.07485063,91866.0,91865.0,0.06279803]
[1763644292077,0.07485063,91866.0,91865.0,0.04882803]
[1763644292880,0.0545979,91855.0,91854.0,0.04315]
[1763644293273,0.07894853,91855.0,91854.0,0.02157]
[1763644293480,0.0437,91854.0,91853.0,0.00016335]
[1763644293778,0.18095063,91854.0,91853.0,0.00016335]
[1763644294279,0.17305063,91854.0,91853.0,0.04331335]
[1763644296078,0.17305063,91854.0,91853.0,0.04551138]
[1763644297270,0.17305063,91854.0,91853.0,0.02393138]
[1763644297671,0.17305063,91854.0,91853.0,0.04551138]
[1763644299574,0.12935063,91854.0,91853.0,0.04551138]
[1763644299780,0.17305063,91854.0,91853.0,0.04551138]
[1763644300385,0.17305063,91854.0,91853.0,0.02393138]
[1763644300572,0.17305063,91854.0,91853.0,0.04551138]
[1763644307586,0.17305063,91854.0,91853.0,0.00016335]
[1763644308086,0.0545995,91841.0,91840.0,0.05712]
[1763644308384,0.0545995,91841.0,91840.0,0.05931803]
[1763644308583,0.0545995,91841.0,91840.0,0.00219803]
[1763644308786,0.0546004,91834.0,91833.0,0.04315]
[1763644308983,0.054601,91829.0,91828.0,0.02157]
[1763644309185,0.0437,91825.0,91824.0,0.00016335]
[1763644309384,0.0437,91825.0,91824.0,0.04331335]
[1763644309580,0.0437,91825.0,91824.0,0.05845138]
[1763644309777,0.0437,91825.0,91824.0,0.00016335]
[1763644309977,0.06803951,91825.0,91824.0,0.00016335]
[1763644310378,0.0437,91825.0,91824.0,0.00016335]
[1763644311288,0.0546029,91813.0,91812.0,0.05609]
[1763644311493,0.0546029,91813.0,91812.0,0.05828803]
[1763644312674,0.0437,91813.0,91812.0,0.05828803]
[1763644312888,0.0546019,91821.0,91820.0,0.04315]
[1763644313083,0.0546019,91821.0,91820.0,0.04534803]
[1763644314393,0.0437,91821.0,91820.0,0.04534803]
[1763644317693,0.00016335,91822.0,91821.0,0.04315]
[1763644317994,0.00016335,91822.0,91821.0,0.04534803]
[1763644320194,0.00016335,91822.0,91821.0,0.04734803]
[1763644321181,0.02192335,91822.0,91821.0,0.04734803]
[1763644321695,0.04386335,91822.0,91821.0,0.04734803]
[1763644322092,0.04386335,91822.0,91821.0,0.04534803]
[1763644322296,0.04386335,91822.0,91821.0,0.04734803]
[1763644322683,0.04386335,91822.0,91821.0,0.02576803]
[1763644323685,0.04386335,91822.0,91821.0,0.00219803]
[1763644323999,0.05476515,91822.0,91821.0,0.002]
[1763644324306,0.0549729,91813.0,91812.0,0.05771]
[1763644324596,0.0549729,91813.0,91812.0,0.05990803]
[1763644325296,0.0549729,91813.0,91812.0,0.04696803]
[1763644325601,0.0549729,91813.0,91812.0,0.00419803]
[1763644326109,0.0549729,91813.0,91806.0,0.04504231]
[1763644326110,0.0549736,91807.0,91806.0,0.04504231]
[1763644326294,0.05717163,91807.0,91806.0,0.04504231]
[1763644327691,0.05717163,91807.0,91806.0,0.04704231]
[1763644328394,0.05717163,91807.0,91806.0,0.06075231]
[1763644328593,0.04626803,91807.0,91806.0,0.06075231]
[1763644328794,0.04626803,91807.0,91806.0,0.06135993]
[1763644328999,0.00219803,91807.0,91806.0,0.06135993]
[1763644329698,0.12535297,91816.0,91815.0,0.04477]
[1763644329905,0.00219803,91816.0,91815.0,0.04537762]
[1763644331306,0.00219803,91816.0,91815.0,0.04637762]
[1763644332997,0.00219803,91816.0,91815.0,0.04737762]
[1763644333197,0.00219803,91816.0,91815.0,0.04837762]
[1763644333806,0.00219803,91816.0,91815.0,0.04637762]
[1763644334011,0.00219803,91816.0,91815.0,0.04837762]
[1763644334404,0.00219803,91816.0,91815.0,0.04637762]
[1763644334603,0.00219803,91816.0,91815.0,0.04737762]
[1763644336110,0.00219803,91816.0,91815.0,0.04537762]
[1763644336309,0.00219803,91816.0,91815.0,0.04837762]
[1763644336505,0.04626803,91816.0,91815.0,0.04837762]
[1763644336916,0.04626803,91816.0,91815.0,0.04737762]
[1763644337100,0.02364803,91816.0,91815.0,0.04837762]
[1763644337296,0.04800207,91816.0,91815.0,0.04637762]
[1763644337504,0.04800207,91816.0,91815.0,0.04837762]
[1763644337816,0.07062207,91816.0,91815.0,0.04737762]
[1763644338403,0.07062207,91816.0,91815.0,0.04537762]
[1763644338603,0.07062207,91816.0,91815.0,0.04637762]
[1763644341708,0.07062207,91816.0,91815.0,0.05728022]
[1763644342108,0.07062207,91816.0,91815.0,0.04637762]
[1763644342309,0.07062207,91816.0,91815.0,0.05728022]
[1763644342711,0.04800207,91816.0,91815.0,0.05728022]
[1763644342911,0.07062207,91816.0,91815.0,0.05728022]
[1763644343616,0.02655207,91816.0,91815.0,0.05728022]
[1763644343821,0.00219803,91816.0,91815.0,0.05728022]
[1763644345425,0.02364803,91816.0,91815.0,0.04637762]
[1763644345624,0.02364803,91816.0,91815.0,0.05728022]
[1763644346418,0.02364803,91816.0,91815.0,0.04637762]
[1763644347422,0.00219803,91816.0,91815.0,0.07099022]
[1763644350318,0.00016335,91822.0,91821.0,0.04279]
[1763644350523,0.00236138,91822.0,91821.0,0.04339762]
[1763644350723,0.0269414,91822.0,91821.0,0.05429952]
[1763644351026,0.02474337,91822.0,91821.0,0.05429952]
[1763644351318,0.00016335,91822.0,91821.0,0.05429952]
[1763644351719,0.03901705,91837.0,91836.0,0.0536901]
[1763644352022,0.203,91853.0,91840.0,0.05578]
[1763644352023,0.0337796,91841.0,91840.0,0.05578]
[1763644352322,0.07219359,91841.0,91840.0,0.05638762]
[1763644352523,0.04965359,91841.0,91840.0,0.05638762]
[1763644352723,0.0319379,91855.0,91854.0,0.05202]
[1763644352917,0.0545679,91855.0,91854.0,0.02345803]
[1763644353225,0.0545679,91855.0,91854.0,0.00219803]
[1763644354041,0.0545679,91855.0,91854.0,0.04771803]
[1763644354228,0.04367,91855.0,91854.0,0.04771803]
[1763644354824,0.04367,91855.0,91854.0,0.06110803]
[1763644355329,0.04367,91855.0,91854.0,0.04771803]
[1763644356031,0.04367,91855.0,91854.0,0.06110803]
[1763644356231,0.04367,91855.0,91854.0,0.06010803]
[1763644356422,0.04367,91855.0,91854.0,0.06110803]
[1763644356727,0.1693176,91864.0,91863.0,0.04452]
[1763644356924,0.04383335,91864.0,91863.0,0.04671803]
[1763644357728,0.02120335,91864.0,91863.0,0.04671803]
[1763644358122,0.04383335,91864.0,91863.0,0.04671803]
[1763644358329,0.00016335,91864.0,91863.0,0.04671803]
[1763644358929,0.00016335,91864.0,91863.0,0.04771803]
[1763644359927,0.04383335,91864.0,91863.0,0.04771803]
[1763644361830,0.04383335,91864.0,91863.0,0.05861493]
[1763644362330,0.00016335,91864.0,91863.0,0.05861493]
[1763644364734,0.00016335,91864.0,91863.0,0.04771803]
[1763644367339,0.04383335,91864.0,91863.0,0.04771803]
[1763644367730,0.04383335,91864.0,91863.0,0.00319803]
[1763644368643,0.04383335,91864.0,91863.0,0.02445803]
[1763644368838,0.04383335,91864.0,91863.0,0.02226]
[1763644369632,0.04383335,91864.0,91863.0,0.04552]
[1763644370440,0.04383335,91864.0,91863.0,0.001]
[1763644370639,0.04383335,91864.0,91863.0,0.02226]
[1763644371835,0.04383335,91864.0,91863.0,0.001]
[1763644372243,0.0545679,91855.0,91854.0,0.00016335]
[1763644372548,0.04367,91837.0,91836.0,0.05791]
[1763644372839,0.0545692,91845.0,91844.0,0.04452]
[1763644373034,0.0545692,91845.0,91844.0,0.04671803]
[1763644375243,0.0545692,91845.0,91844.0,0.04771803]
[1763644375742,0.18005235,91854.0,91853.0,0.04452]
[1763644375940,0.06802621,91854.0,91853.0,0.04671803]
[1763644378233,0.02435621,91854.0,91853.0,0.04771803]
[1763644378435,0.14867,91860.0,91859.0,0.04452]
[1763644378639,0.18394862,91860.0,91859.0,0.04671803]
[1763644378839,0.17305132,91860.0,91859.0,0.04671803]
[1763644379444,0.18394862,91860.0,91859.0,0.04671803]
[1763644379827,0.18394862,91860.0,91859.0,0.04771803]
[1763644381644,0.17305132,91860.0,91859.0,0.04771803]
[1763644382140,0.15042132,91860.0,91859.0,0.04771803]
[1763644382541,0.12938132,91860.0,91859.0,0.04771803]
[1763644383050,0.15135132,91860.0,91859.0,0.04771803]
[1763644383538,0.17383132,91860.0,91859.0,0.04771803]
[1763644384349,0.17383132,91860.0,91859.0,0.05861543]
[1763644384350,0.12938132,91860.0,91859.0,0.05861543]
[1763644385642,0.02438132,91860.0,91859.0,0.05861543]
[1763644387146,0.0108972,91861.0,91859.0,0.05861543]
[1763644387348,0.0108972,91861.0,91860.0,0.05774]
[1763644387547,0.03533205,91861.0,91860.0,0.05993803]
[1763644388449,0.03533205,91861.0,91860.0,0.06093803]
[1763644388952,0.02443485,91861.0,91860.0,0.06093803]
[1763644389346,0.00016335,91864.0,91863.0,0.04462]
[1763644389648,0.02459701,91864.0,91863.0,0.04681803]
[1763644390544,0.03549381,91864.0,91863.0,0.04681803]
[1763644390944,0.03549381,91864.0,91863.0,0.04781803]
[1763644391450,0.02459701,91864.0,91863.0,0.04781803]
[1763644392847,0.00016335,91864.0,91863.0,0.04781803]
[1763644393056,0.3608,91876.0,91875.0,0.0555155]
[1763644393349,0.3608,91876.0,91875.0,0.05771353]
[1763644394145,0.3618,91876.0,91875.0,0.05771353]
[1763644395553,0.3618,91876.0,91875.0,0.04681803]
[1763644395749,0.38377,91876.0,91875.0,0.04681803]
[1763644396151,0.40625,91876.0,91875.0,0.04681803]
[1763644396346,0.38377,91876.0,91875.0,0.04681803]
[1763644397664,0.3618,91876.0,91875.0,0.04681803]
[1763644398751,0.3618,91876.0,91875.0,1.54681803]
[1763644398952,0.12527991,91900.0,91875.0,1.54681803]
[1763644398953,0.16468155,91919.0,91876.0,0.0108954]
[1763644399300,0.00999999,91940.0,91876.0,0.0108954]
[1763644399301,0.01361,91938.0,91937.0,0.0108882]
[1763644399553,0.05806,91944.0,91943.0,0.0108875]
[1763644399753,0.03558,91944.0,91943.0,0.01308553]
[1763644400157,0.05806,91944.0,91943.0,0.01308553]
[1763644400349,0.03558,91944.0,91943.0,0.01308553]
[1763644400650,0.03574318,91944.0,91943.0,0.01308553]
[1763644400858,0.05806,91944.0,91943.0,0.01308553]
[1763644401358,0.01377318,91944.0,91943.0,0.01308553]
[1763644401755,0.01361,91950.0,91949.0,0.0108867]
[1763644401961,0.01361,91950.0,91949.0,0.01308473]
[1763644402348,0.03558,91950.0,91949.0,0.01308473]
[1763644402657,0.01361,91952.0,91949.0,0.01308473]
[1763644403360,0.01361,91952.0,91949.0,0.01408473]
[1763644403752,0.00016315,91953.0,91949.0,0.01308473]
[1763644403954,0.01361,91952.0,91949.0,0.01408473]
[1763644404561,0.01377318,91952.0,91949.0,0.01408473]
[1763644404859,0.00016315,91953.0,91949.0,0.01408473]
[1763644405060,0.01361,91952.0,91949.0,0.01408473]
[1763644405257,0.03558,91952.0,91949.0,0.01408473]
[1763644405454,0.04445,91950.0,91949.0,0.01408473]
[1763644405651,0.01361,91952.0,91949.0,0.01408473]
[1763644405859,0.02197,91952.0,91949.0,0.01408473]
[1763644406047,0.03558,91952.0,91949.0,0.01408473]
[1763644406448,0.01361,91952.0,91949.0,0.01408473]
[1763644406864,0.00016315,91953.0,91949.0,0.01308473]
[1763644407161,0.01361,91952.0,91949.0,0.01408473]
[1763644408851,0.00016315,91953.0,91949.0,0.01408473]
[1763644409055,0.01361,91956.0,91955.0,0.010886]
[1763644409255,0.01361,91968.0,91955.0,0.010886]
[1763644409256,0.09720184,91966.0,91965.0,0.0108849]
[1763644409461,0.09720184,91966.0,91965.0,0.01308293]
[1763644410366,0.09720184,91966.0,91965.0,0.00219803]
[1763644411063,0.00027184,91966.0,91965.0,0.00219803]
[1763644411361,0.00016315,91975.0,91974.0,0.0108838]
[1763644411362,0.09709315,91975.0,91974.0,0.0108838]
[1763644411665,0.09709315,91975.0,91974.0,0.01308183]
[1763644412254,0.00016315,91975.0,91974.0,0.01308183]
[1763644412464,0.04749315,91975.0,91974.0,0.01308183]
[1763644412856,0.09396315,91975.0,91974.0,0.01308183]
[1763644413467,0.02686,92000.0,91974.0,0.00219803]
[1763644413468,0.12189,92000.0,91974.0,0.00219803]
[1763644413674,0.0928,91991.0,91990.0,0.0108819]
[1763644413855,0.0928,91991.0,91990.0,0.01307993]
[1763644414056,0.0947,91991.0,91990.0,0.01307993]
[1763644414270,0.0019,91991.0,91990.0,0.01307993]
[1763644414464,0.12205305,92000.0,91999.0,0.0108808]
[1763644414762,0.02925305,92000.0,91999.0,0.01307883]
[1763644414953,0.12205305,92000.0,91999.0,0.01307883]
[1763644415158,0.02925305,92000.0,91999.0,0.01307883]
[1763644415461,0.09305305,92000.0,91999.0,0.01307883]
[1763644415666,0.09305305,92000.0,91999.0,0.02203883]
[1763644416362,0.00016305,92000.0,91999.0,0.02203883]
[1763644416564,0.04660172,92006.0,92005.0,0.0198401]
[1763644416865,0.04660172,92006.0,92005.0,0.02203813]
[1763644416866,0.09307172,92006.0,92005.0,0.02203813]
[1763644417666,0.09407172,92006.0,92005.0,0.02203813]
[1763644418363,0.09307172,92006.0,92005.0,0.02203813]
[1763644418666,0.00027172,92006.0,92005.0,0.02203813]
[1763644419365,0.00027172,92006.0,92005.0,0.02303813]
[1763644419762,0.09296305,92015.0,92014.0,0.0198391]
[1763644419967,0.09296305,92015.0,92014.0,0.00219803]
[1763644420870,0.09396305,92015.0,92014.0,0.00219803]
[1763644422161,0.00116305,92015.0,92014.0,0.01115803]
[1763644422367,0.12189,92024.0,92023.0,0.019838]
[1763644422570,0.0108758,92042.0,92031.0,0.010877]